[Event "1st Bella Italia International 2022"]
[Site "Lignano"]
[Date "2022.08.21"]
[Round "7.10"]
[White "Urbani, Gabriel"]
[Black "Micottis, Dorian"]
[Result "1/2-1/2"]
[ECO "B13"]
[WhiteElo "2046"]
[BlackElo "2263"]
[Annotator "TA"]
[PlyCount "104"]
[EventDate "2022.08.18"]
[EventCountry "ITA"]
[SourceTitle "playchess.com"]
[Source "ChessBase"]
[SourceQuality "1"]
[TimeControl "5400+30"]

{[%evp 16,104,-8,-8,-9,-18,0,0,0,-6,-5,-37,0,-54,-13,-7,0,-83,-18,-14,-11,-9,-20,-35,-15,-2,-50,-53,-52,-177,-174,-197,-181,-188,-118,-109,-45,-37,-15,-17,-15,-14,-12,-27,-22,-22,-19,-46,0,-31,-40,-40,-42,-29,0,-11,0,-43,0,0,0,0,0,0,0,0,0,0,0,0,0,-8,-8,-8,-8,-8,-8,-8,-8,-8,-8,-8,0,0,0,0,0,0,-8,-8,0]} 1. e4 {[%emt 0:00:01]} c6 {[%emt 0:00:39]} 2. d4 {[%emt 0:00:10]} d5 {[%emt 0:00:03]} 3. exd5 {[%emt 0:00:19]} cxd5 {[%emt 0:00:07]} 4. Bd3 {[%emt 0:00:38]} Nc6 {[%emt 0:00:05]} 5. Nf3 {[%emt 0:00:10]} Bg4 {[%emt 0:01:24][%cal Bc8g4,Bg4h5,Bh5g6][%mdl 32]} 6. c3 {[%emt 0:00:10]} e6 {[%emt 0:02:37]} 7. O-O {[%emt 0:00:53]} Bd6 {[%emt 0:00:52]} 8. Nbd2 {[%emt 0:02:23][%cal Bb1d2,Bd2f1,Bf1g3][%mdl 32]} Nf6 {[%emt 0:01:18]} 9. Re1 {[%emt 0:01:18]} O-O {[%emt 0:00:13] B13: Caro-Kann: Exchange Variation and Panov-Botvinnik Attack.} 10. Nf1 {[%emt 0:03:01]} Bh5 {[%emt 0:06:26]} 11. Ng3 {[%emt 0:04:06]} Bg6 {[%emt 0:00:04] [#]} 12. Ne5 $146 {[%emt 0:02:23]} ({Predecessor:} 12. Bg5 Bxd3 13. Qxd3 h6 14. Bxf6 Qxf6 15. Re2 Rfe8 16. Rae1 Bf8 17. Nh5 Qd8 18. Nf4 {1-0 (30) Nabavi,P (2168)-Hess,M (2189) Baden 2016}) 12... Qc7 {[%emt 0:12:10][%cal Rc6e5]} 13. f4 {[%emt 0:08:24]} Rab8 {[%emt 0:06:41]} 14. Qf3 {[%emt 0:10:57]} (14. Bxg6 $11 hxg6 15. Nh1) 14... b5 {[%emt 0:09:55]} 15. Nxg6 {[%emt 0:08:05]} hxg6 {[%emt 0:00:14]} 16. h4 {[%emt 0:16:05]} (16. a3 $1 $11 {keeps the balance.}) 16... Rfe8 {[%emt 0:05:57]} (16... b4 $17 17. Be3 bxc3 18. bxc3 Ne7) 17. h5 $11 {[%emt 0:07:52]} Ne7 {[%emt 0:13:48]} 18. hxg6 {[%emt 0:04:42]} Nxg6 {[%emt 0:00:09]} 19. Nh5 {[%emt 0:19:22]} Nxh5 {[%emt 0:05:36]} 20. Qxh5 {[%emt 0:00:05]} Nxf4 {[%emt 0:01:06]} 21. Bxf4 {[%emt 0:00:22]} Bxf4 {[%emt 0:00:01]} 22. Qh7+ {[%emt 0:08:31]} (22. Bh7+ $1 $15 Kf8 23. Rf1) 22... Kf8 $19 {[%emt 0:00:43]} 23. Qh8+ {[%emt 0:00:48]} Ke7 {[%emt 0:00:02]} 24. Qxg7 {[%emt 0:00:20][%cal Og2g3]} Bh2+ {[%emt 0:19:38]} (24... Rg8 $19 {( -> ...Bh2+)} 25. Rxe6+ (25. Qh7 $2 Rh8 $19) 25... Kxe6 26. Re1+ Kd7 27. Bxb5+ Rxb5 28. Qxg8 Kc6 29. Qe8+ Qd7) 25. Kh1 $17 {[%emt 0:00:01] [#] Bg6 is the strong threat.} Qg3 {[%emt 0:00:08] Prevents Bg6.} (25... Qf4 $17 {aiming for ...Rh8.} 26. Rf1 Rg8) 26. Bg6 $15 {[%emt 0:01:50]} Qxg6 {[%emt 0:03:23]} (26... Qh4 {is interesting.} 27. Qxf7+ Kd6 28. Qh7 Qxh7 29. Bxh7 Bf4) 27. Qxg6 {[%emt 0:00:01] Dancing on a razor blade.} fxg6 {[%emt 0:00:01]} 28. Kxh2 {[%emt 0:00:02][%mdl 4096] Endgame KRR-KRR} b4 {[%emt 0:00:14]} 29. Re3 {[%emt 0:00:33]} bxc3 {[%emt 0:01:03]} 30. bxc3 {[%emt 0:00:12]} Rb2 {[%emt 0:00:49]} 31. Rae1 {[%emt 0:00:46]} Kf6 {[%emt 0:01:04]} (31... Kd6 $15 {deserves consideration.}) 32. R1e2 {[%emt 0:00:18]} Rxe2 {[%emt 0:00:32]} 33. Rxe2 {[%emt 0:00:00] KR-KR} Rc8 {[%emt 0:00:08]} 34. Re3 {[%emt 0:00:14]} Rh8+ {[%emt 0:02:25]} 35. Kg1 {[%emt 0:01:55]} Rh5 {[%emt 0:01:42]} 36. g3 {[%emt 0:00:35]} e5 {[%emt 0:01:18]} 37. dxe5+ {[%emt 0:00:17] The position is equal.} Rxe5 {[%emt 0:00:01]} 38. Rd3 {[%emt 0:00:19]} Re2 {[%emt 0:00:51]} 39. Rxd5 {[%emt 0:00:08]} Rxa2 {[%emt 0:00:06]} 40. c4 {[%emt 0:00:18][%cal Bc3c4,Bc4c5][%mdl 32]} a5 {[%emt 0:01:24]} 41. c5 {[%emt 0:00:16]} Ke6 {[%emt 0:01:04]} 42. Rd6+ {[%emt 0:00:15]} Kf5 {[%emt 0:00:05]} 43. c6 {[%emt 0:00:10] [#] And now Rd5+ would win.} Rc2 {[%emt 0:01:19]} 44. Rd5+ {[%emt 0:00:13]} Kg4 {[%emt 0:00:24]} 45. Rxa5 {[%emt 0:00:26]} (45. c7 {seems wilder.} a4 46. Rd4+ Kxg3 47. Rd3+) 45... Rxc6 {[%emt 0:00:07]} 46. Ra3 {[%emt 0:00:30]} Rc1+ {[%emt 0:00:52]} 47. Kg2 {[%emt 0:00:09]} Rc2+ {[%emt 0:00:02]} 48. Kg1 $1 {[%emt 0:00:11]} g5 {[%emt 0:00:19]} 49. Ra5 {[%emt 0:02:03]} Rc3 {[%emt 0:00:15]} 50. Kh2 {[%emt 0:00:24]} Rc2+ {[%emt 0:00:30]} 51. Kg1 {[%emt 0:00:02]} Rb2 {[%emt 0:00:27]} 52. Rc5 {[%emt 0:00:16]} Rb1+ {[%emt 0:00:40] Weighted Error Value: White=0.15 (very precise) /Black=0.14 (very precise)} 1/2-1/2

[Event "1st Bella Italia International 2022"]
[Site "Lignano"]
[Date "2022.08.21"]
[Round "7.11"]
[White "Titze, Leo"]
[Black "Lapiccirella, Daniele"]
[Result "1/2-1/2"]
[ECO "B14"]
[WhiteElo "2071"]
[BlackElo "2173"]
[Annotator "TA"]
[PlyCount "47"]
[EventDate "2022.08.18"]
[EventCountry "ITA"]
[SourceTitle "playchess.com"]
[Source "ChessBase"]
[SourceQuality "1"]
[TimeControl "5400+30"]

{[%evp 20,47,35,48,49,34,34,0,0,8,0,0,4,7,7,0,0,0,0,0,-2,-11,-3,-15,-3,-13,-8,-30,-16,-14]} 1. e4 {[%emt 0:06:12]} c5 {[%emt 0:00:08]} 2. d4 {[%emt 0:00:04]} cxd4 {[%emt 0:00:49]} 3. c3 {[%emt 0:00:06]} d5 {[%emt 0:03:47]} 4. exd5 {[%emt 0:02:46]} Qxd5 {[%emt 0:00:09]} 5. cxd4 {[%emt 0:01:17]} e6 {[%emt 0:00:08]} 6. Nc3 {[%emt 0:01:29]} Qd8 {[%emt 0:00:05]} 7. Nf3 {[%emt 0:02:05]} Nf6 {[%emt 0:00:06]} 8. Bc4 {[%emt 0:02:24]} Be7 {[%emt 0:00:12]} 9. O-O {[%emt 0:02:55]} O-O {[%emt 0:00:07]} 10. Bf4 {[%emt 0:00:55] 10.a3 is a critical line.} Nc6 {[%emt 0:10:44]} 11. a3 {[%emt 0:21:12]} Bd7 {[%emt 0:13:52] [#] B14: Caro-Kann: Panov-Botvinnik Attack with 5...e6 and 5...g6.} 12. b4 $146 {[%emt 0:06:57]} ({Predecessor:} 12. Qe2 Rc8 13. Rad1 Na5 14. Ba2 Bxa3 15. bxa3 Rxc3 16. Bd2 Rc2 17. Bb1 Rb2 18. Qe1 Nc6 19. Bc3 Rb3 20. Ne5 Nd5 21. Nxc6 Bxc6 22. Ba1 Qg5 23. Qe4 {0-1 (23) Klueting,R (1973)-Humburg,P (2244) Dortmund 2019}) 12... Rc8 {[%emt 0:15:04][%cal Oc6b4] White must now prevent ...Nxb4!} 13. Qb3 {[%emt 0:02:14]} a5 {[%emt 0:01:25][%cal Ra5b4]} 14. d5 {[%emt 0:03:37]} exd5 {[%emt 0:02:01]} 15. Nxd5 {[%emt 0:00:42]} Nxd5 {[%emt 0:00:23]} 16. Bxd5 {[%emt 0:00:03] Hoping for b5.} axb4 {[%emt 0:02:00]} 17. axb4 {[%emt 0:01:25]} Nxb4 {[%emt 0:00:08]} 18. Bxb7 {[%emt 0:09:04] [#] Strongly threatening Rfd1.} Be6 $1 {[%emt 0:00:24]} 19. Qd1 {[%emt 0:03:08]} Rc4 {[%emt 0:00:46]} 20. Qxd8 {[%emt 0:00:21]} Rxd8 {[%emt 0:00:07]} 21. Bg3 {[%emt 0:00:44]} h6 {[%emt 0:00:43]} 22. Ne5 {[%emt 0:04:23]} Rc5 {[%emt 0:00:31]} 23. f4 {[%emt 0:06:48]} Bd5 {[%emt 0:02:10]} 24. Bxd5 $1 {[%emt 0:01:04] Weighted Error Value: White=0.08 (flawless) /Black=0.03 (flawless)} 1/2-1/2

[Event "1st Bella Italia International 2022"]
[Site "Lignano"]
[Date "2022.08.21"]
[Round "7.12"]
[White "Della Pietra, Andrea"]
[Black "Etxagibel Larranaga, Asier"]
[Result "0-1"]
[ECO "D45"]
[WhiteElo "2172"]
[BlackElo "2118"]
[Annotator "ChessBase"]
[PlyCount "78"]
[EventDate "2022.08.18"]
[EventCountry "ITA"]
[SourceTitle "playchess.com"]
[Source "ChessBase"]
[SourceQuality "1"]
[TimeControl "5400+30"]

1. d4 {[%emt 0:00:04]} d5 {[%emt 0:00:02]} 2. c4 {[%emt 0:00:08]} c6 {[%emt 0:00:02]} 3. Nc3 {[%emt 0:00:16]} Nf6 {[%emt 0:00:03]} 4. e3 {[%emt 0:00:31]} a6 {[%emt 0:00:15]} 5. Qc2 {[%emt 0:00:34]} e6 {[%emt 0:02:30]} 6. Nf3 {[%emt 0:01:03]} Be7 {[%emt 0:00:07]} 7. g4 {[%emt 0:10:26]} dxc4 {[%emt 0:13:25]} 8. Bxc4 {[%emt 0:00:53]} b5 {[%emt 0:12:20]} 9. Be2 {[%emt 0:00:38]} Bb7 {[%emt 0:02:00]} 10. e4 {[%emt 0:18:18]} c5 {[%emt 0:13:47]} 11. g5 {[%emt 0:03:02]} Nfd7 {[%emt 0:03:36]} 12. Be3 {[%emt 0:06:05]} cxd4 {[%emt 0:05:58]} 13. Bxd4 {[%emt 0:01:44]} O-O {[%emt 0:01:22]} 14. Be3 {[%emt 0:03:32]} Qa5 {[%emt 0:02:55]} 15. Nd2 {[%emt 0:13:21]} Rc8 {[%emt 0:05:49]} 16. a3 {[%emt 0:03:38]} Nc6 {[%emt 0:08:20]} 17. O-O {[%emt 0:01:03]} Qd8 {[%emt 0:01:10]} 18. Rad1 {[%emt 0:04:00]} Bxg5 {[%emt 0:25:49]} 19. f4 {[%emt 0:00:05]} Be7 {[%emt 0:00:00]} 20. Nf3 {[%emt 0:06:25]} Qe8 {[%emt 0:00:00]} 21. e5 {[%emt 0:06:54]} Na5 {[%emt 0:00:00]} 22. Qd2 {[%emt 0:01:01]} Rd8 {[%emt 0:00:00]} 23. Qe1 {[%emt 0:01:01]} Rac8 {[%emt 0:00:00]} 24. Nxb5 {[%emt 0:00:54]} Nc4 {[%emt 0:00:00]} 25. Bxc4 {[%emt 0:01:08]} Rxc4 {[%emt 0:00:00]} 26. Nd6 {[%emt 0:00:19]} Bxd6 {[%emt 0:00:00]} 27. Rxd6 {[%emt 0:00:03]} Nf8 {[%emt 0:00:00]} 28. Qd2 {[%emt 0:01:39]} Rdc8 {[%emt 0:00:00]} 29. Nd4 {[%emt 0:02:12]} Be4 {[%emt 0:00:00]} 30. Rd1 {[%emt 0:02:06]} f6 {[%emt 0:00:00]} 31. Qf2 {[%emt 0:06:47]} Qh5 {[%emt 0:00:00]} 32. Ne2 {[%emt 0:00:38]} Rc2 {[%emt 0:00:00]} 33. R6d2 {[%emt 0:00:28]} Rxd2 {[%emt 0:00:00]} 34. Rxd2 {[%emt 0:00:51]} Bf3 {[%emt 0:00:13]} 35. Nc3 {[%emt 0:00:57]} Ng6 {[%emt 0:01:20]} 36. Qg3 {[%emt 0:00:50]} Nh4 {[%emt 0:00:48]} 37. Rf2 {[%emt 0:03:56]} Bb7 {[%emt 0:00:36]} 38. Rf1 {[%emt 0:01:28]} Nf5 {[%emt 0:00:39]} 39. Qe1 {[%emt 0:00:21]} Qg4+ {[%emt 0:06:54]} 0-1

[Event "1st Bella Italia International 2022"]
[Site "Lignano"]
[Date "2022.08.21"]
[Round "7.13"]
[White "Grigorian, Roudolph"]
[Black "Cino, Giuseppe Adalberto"]
[Result "1/2-1/2"]
[ECO "D02"]
[WhiteElo "2101"]
[BlackElo "1976"]
[Annotator "TA"]
[PlyCount "133"]
[EventDate "2022.08.18"]
[EventCountry "ITA"]
[SourceTitle "playchess.com"]
[Source "ChessBase"]
[SourceQuality "1"]
[TimeControl "5400+30"]

{[%evp 11,133,0,0,-10,30,-21,-33,-45,-41,-43,-17,-36,2,13,0,5,18,0,0,0,0,-4,0,0,0,0,0,0,0,0,0,0,0,0,0,-18,-7,-22,-26,-30,-22,-45,-1,-1,0,0,0,0,0,0,7,0,17,0,52,18,18,20,43,0,15,22,166,154,147,20,7,8,56,8,79,0,0,0,8,0,22,11,11,15,54,0,0,0,0,0,8,0,54,22,25,0,0,0,18,8,8,0,28,8,8,8,8,8,187,203,172,0,172,0,8,0,0,0,0,0,0,0,437,0,0,0,0,0]} 1. d4 {[%emt 0:00:03]} d5 {[%emt 0:02:15]} 2. Bf4 {[%emt 0:00:15]} e6 {[%emt 0:00:33]} 3. e3 {[%emt 0:00:15]} c5 {[%emt 0:00:24]} 4. Nc3 {[%emt 0:00:39]} a6 {[%emt 0:00:07]} 5. Nf3 {[%emt 0:00:25]} Nc6 {[%emt 0:00:06]} 6. Be2 {[%emt 0:00:43]} Nf6 {[%emt 0:00:14][%cal Bg8f6,Bf6h5,Bh5g3][%mdl 32]} 7. O-O {[%emt 0:03:20] D02: 1 d4 d5 2 Nf3 sidelines, including 2...Nf6 3 g3 and 2...Nf6 3 Bf4.} Nh5 {[%emt 0:02:58] [#]} 8. Be5 $146 {[%emt 0:00:48]} ({White should try} 8. Bg5 Nf6 9. g3) ({Predecessor:} 8. Bg3 Nxg3 9. hxg3 Bd6 10. Re1 O-O 11. e4 cxd4 12. Nxd4 Bc5 13. Nb3 Bb4 14. exd5 Bxc3 15. bxc3 exd5 {½-½ (69) Lefrancois,J (1476)-Pillard,V (2212) Europe Echecs INT 2022}) 8... f6 $11 {[%emt 0:06:20]} 9. Bg3 {[%emt 0:09:12] Black is slightly better.} Nxg3 {[%emt 0:01:41]} 10. hxg3 {[%emt 0:00:02]} Bd6 {[%emt 0:00:08]} 11. e4 {[%emt 0:01:09]} Nxd4 {[%emt 0:05:53]} 12. exd5 {[%emt 0:03:55]} e5 {[%emt 0:13:23]} 13. Ne4 {[%emt 0:00:49]} Nxf3+ {[%emt 0:04:33]} 14. Bxf3 {[%emt 0:02:24]} f5 {[%emt 0:00:11]} 15. Nxd6+ {[%emt 0:19:49]} Qxd6 {[%emt 0:00:08]} 16. Qd2 {[%emt 0:00:07]} O-O {[%emt 0:00:42]} 17. c4 {[%emt 0:01:26]} Bd7 {[%emt 0:00:34]} 18. a3 {[%emt 0:01:25]} Rae8 {[%emt 0:05:19]} 19. Rfe1 {[%emt 0:09:45]} e4 {[%emt 0:00:57]} 20. Bh5 {[%emt 0:00:02]} g6 {[%emt 0:00:43]} 21. Bd1 {[%emt 0:00:02]} f4 {[%emt 0:00:57]} 22. gxf4 {[%emt 0:00:08]} Rxf4 {[%emt 0:00:21]} 23. g3 {[%emt 0:00:38]} Rf6 {[%emt 0:02:28]} 24. Qg5 {[%emt 0:08:13]} Ref8 {[%emt 0:13:36]} 25. Re2 {[%emt 0:01:54]} Rf5 {[%emt 0:03:58]} 26. Qh4 {[%emt 0:05:11]} e3 {[%emt 0:02:25]} 27. Rxe3 {[%emt 0:00:02]} Rxf2 {[%emt 0:00:15] ( -> ...Rf1+)} 28. Be2 {[%emt 0:00:18] Against Rf1+} R8f6 {[%emt 0:01:08]} 29. Rf1 {[%emt 0:01:16]} Rxf1+ {[%emt 0:17:29]} 30. Bxf1 {[%emt 0:00:02]} b5 {[%emt 0:00:27]} 31. b3 {[%emt 0:01:32]} Kg7 {[%emt 0:00:10]} 32. Qe4 {[%emt 0:08:58]} Kf7 {[%emt 0:01:02]} (32... Rf7 $11) 33. Kg2 {[%emt 0:03:17]} bxc4 {[%emt 0:02:06]} 34. Bxc4 {[%emt 0:07:16]} a5 {[%emt 0:00:43]} 35. Re1 {[%emt 0:00:09][%cal Ob3b4]} h5 {[%emt 0:01:41]} 36. Qe3 {[%emt 0:01:51]} h4 {[%emt 0:01:00]} (36... Kg7 $1 $11) 37. gxh4 $18 {[%emt 0:00:25]} Rf4 {[%emt 0:00:02] [#]} 38. Rf1 {[%emt 0:08:47]} (38. Qxf4+ $1 $16 {[%mdl 512]} Qxf4 39. Rf1 Qxf1+ 40. Kxf1 (40. Bxf1 Kf6 $11)) 38... Rxf1 $11 {[%emt 0:02:02]} 39. Kxf1 {[%emt 0:00:01][%mdl 4096] Endgame KQB-KQB} Kg7 {[%emt 0:01:09]} (39... Bf5 $11) 40. Kg2 {[%emt 0:00:46]} (40. Qc3+ $14 Kg8 41. Kg2 (41. Qxa5 Qf6+ 42. Kg2 Qb2+ 43. Kf3 Qf6+ 44. Kg2 Qb2+ 45. Kh1 Qb1+ 46. Kh2 Qb2+ 47. Kh1 Qb1+ 48. Kh2 Qb2+ 49. Kh1 $11)) 40... Kh7 {[%emt 0:03:56]} (40... Qf6 $11) 41. Qg5 {[%emt 0:00:16]} (41. Qf3 $16) 41... Bf5 {[%emt 0:00:46]} 42. Qe3 {[%emt 0:01:00]} Qf6 {[%emt 0:00:36]} 43. Kg3 {[%emt 0:00:27]} Qd6+ {[%emt 0:00:28]} 44. Qf4 {[%emt 0:00:08]} Qe7 {[%emt 0:00:04]} 45. Kf2 {[%emt 0:01:21]} Qg7 {[%emt 0:00:45]} 46. Qe3 {[%emt 0:01:33]} (46. h5 $14) 46... Qf6 {[%emt 0:01:18]} 47. Kg3 {[%emt 0:00:34]} Qd6+ {[%emt 0:00:05]} 48. Qf4 {[%emt 0:00:21]} Qe7 {[%emt 0:00:15]} 49. Kf2 {[%emt 0:01:24]} (49. h5 $11 {feels stronger.}) 49... Qg7 $14 {[%emt 0:00:12]} 50. d6 {[%emt 0:00:18]} (50. h5 $5) 50... Qb2+ {[%emt 0:00:06]} 51. Kg3 {[%emt 0:00:45] Threatens to win with Qe3.} Qc3+ {[%emt 0:00:14]} 52. Kf2 {[%emt 0:00:01]} Qb2+ {[%emt 0:00:04]} 53. Kg1 {[%emt 0:00:53]} Qb1+ {[%emt 0:00:30]} 54. Kf2 {[%emt 0:00:34]} Qb2+ {[%emt 0:00:06]} 55. Ke1 {[%emt 0:00:29] Strongly threatening Qe3.} Qb1+ {[%emt 0:00:39]} 56. Ke2 {[%emt 0:00:06] Qe5 is the strong threat.} Qc2+ {[%emt 0:00:19]} 57. Kf1 {[%emt 0:00:58]} Bd3+ $2 {[%emt 0:04:12]} (57... Qd1+ $11 58. Kf2 Qc2+ 59. Be2 Qxb3) 58. Bxd3 $18 {[%emt 0:00:15] Chess con chili.} Qxd3+ {[%emt 0:00:01] [#] KQ-KQ} 59. Ke1 $2 {[%emt 0:00:31]} (59. Kf2 $1 $18 {And now Qf7+ would win.} Qxb3 60. Qf6) 59... Qb1+ $2 {[%emt 0:00:18]} (59... Qc3+ $1 $11 60. Qd2 Qxb3) 60. Ke2 $2 {[%emt 0:00:17]} (60. Kf2 $18 {aiming for Qf7+.} Qb2+ 61. Kf3 Qxb3+ 62. Ke4 Qe6+ 63. Qe5 Qc4+ 64. Ke3) 60... Qc2+ $11 {[%emt 0:00:13]} 61. Qd2 {[%emt 0:00:48]} Qe4+ {[%emt 0:00:13]} 62. Kd1 {[%emt 0:00:10] Black must now prevent Kc1.} Qb1+ {[%emt 0:00:10]} 63. Ke2 {[%emt 0:00:01]} Qe4+ {[%emt 0:00:05]} 64. Qe3 {[%emt 0:00:33]} Qc2+ $2 {[%emt 0:00:06][%mdl 8192]} (64... Qg2+ $11 {and Black is okay.} 65. Kd3 (65. Ke1 Qh1+ 66. Kd2 Qh2+ 67. Kc3 Qxd6 $11) 65... Qd5+ 66. Kc3 Qxd6) 65. Kf3 $2 {[%emt 0:00:19]} (65. Ke1 $18) 65... Qd1+ {[%emt 0:00:15]} 66. Qe2 {[%emt 0:00:52]} Qxd6 {[%emt 0:00:24]} 67. Qc4 {[%emt 0:00:13] Weighted Error Value: White=0.22 (precise) /Black=0.24 (precise)} 1/2-1/2

[Event "1st Bella Italia International 2022"]
[Site "Lignano"]
[Date "2022.08.21"]
[Round "7.14"]
[White "Bettalli, Francesco"]
[Black "Tencati, Giuseppe"]
[Result "1-0"]
[ECO "D70"]
[WhiteElo "2237"]
[BlackElo "2055"]
[Annotator "TA"]
[PlyCount "55"]
[EventDate "2022.08.18"]
[EventCountry "ITA"]
[SourceTitle "playchess.com"]
[Source "ChessBase"]
[SourceQuality "1"]
[TimeControl "5400+30"]

{[%evp 16,55,35,45,46,29,34,47,47,39,35,29,29,26,34,51,62,35,36,18,29,0,0,0,28,48,57,54,115,119,108,107,226,202,222,208,255,254,251,94,943,905]} 1. d4 {[%emt 0:06:13]} Nf6 {[%emt 0:00:12][%cal Bg8f6,Bf6d5,Bd5b6][%mdl 32]} 2. c4 {[%emt 0:00:03]} g6 {[%emt 0:00:08]} 3. f3 {[%emt 0:00:04]} d5 {[%emt 0:00:21]} 4. cxd5 {[%emt 0:00:03]} Nxd5 {[%emt 0:00:10]} 5. e4 {[%emt 0:00:03]} Nb6 {[%emt 0:00:16]} 6. Nc3 {[%emt 0:00:04]} Bg7 {[%emt 0:00:21]} 7. Be3 {[%emt 0:00:03]} O-O {[%emt 0:01:27]} 8. Qd2 {[%emt 0:00:04]} e5 {[%emt 0:01:06]} 9. d5 $1 {[%emt 0:00:04]} c6 {[%emt 0:00:25] D70: Grünfeld: Unusual White 3rd moves (met by ...d5).} 10. h4 {[%emt 0:00:06]} cxd5 {[%emt 0:00:32]} 11. exd5 {[%emt 0:00:06]} (11. Nxd5 Be6 $11) 11... N8d7 {[%emt 0:00:29][%cal Bb8d7,Bd7f6,Bf6g4][%mdl 32] White is slightly better.} 12. h5 {[%emt 0:00:06]} Nf6 {[%emt 0:00:17][%csl LRd5,LRh5]} 13. hxg6 {[%emt 0:00:04]} fxg6 {[%emt 0:00:10][%cal Rf6d5]} 14. O-O-O {[%emt 0:00:03]} Bd7 {[%emt 0:00:58]} 15. Kb1 {[%emt 0:00:05]} Rc8 {[%emt 0:00:52]} 16. d6 {[%emt 0:00:04]} e4 {[%emt 0:03:09]} 17. fxe4 {[%emt 0:00:06] aiming for Nf3. 17.Ka1 is vanishing.} Ng4 {[%emt 0:01:17]} 18. Bg5 {[%emt 0:00:05]} Qe8 {[%emt 0:00:26]} 19. Nf3 $1 $36 {[%emt 0:00:05][%mdl 2048] White has good play.} Rf7 {[%emt 0:08:25][%cal Oc8c3]} ({Much less strong is} 19... Bxc3 20. bxc3 Qxe4+ 21. Bd3 $14) (19... Rxc3 $5 20. bxc3 Qxe4+ 21. Bd3 Qc6 $11) 20. Qe1 {[%emt 0:00:27] [#]} Rxc3 $146 {[%emt 0:21:10]} ({Predecessor:} 20... Rc5 21. Bd2 Be6 22. e5 Bxe5 23. Bd3 Na4 24. Nxe5 Rxe5 25. Qh4 Rh5 26. Qg3 Nxc3+ 27. Bxc3 {1-0 (34) Ding,L (2805)-Mamedyarov,S (2774) Stavanger 2019}) 21. bxc3 {[%emt 0:00:04]} Qc8 {[%emt 0:00:05] [#]} ({Black should try} 21... Be6 $1 $14) 22. Rd4 $1 {[%emt 0:03:49][%cal Og5d2]} Qc5 {[%emt 0:10:31]} 23. Qd2 {[%emt 0:01:56][%cal Of1e2]} h6 {[%emt 0:29:08] [#]} (23... Bc6 $16) 24. Be7 $1 {[%emt 0:01:44]} Ne5 {[%emt 0:12:52]} (24... Qa5 25. Bc4) 25. Nxe5 {[%emt 0:00:59]} Bxe5 {[%emt 0:00:08] [#]} 26. Be2 $1 {[%emt 0:01:25][%cal Oh1h6]} Bf4 {[%emt 0:02:22]} (26... Bg7 27. Rxh6) 27. Qc2 {[%emt 0:02:42]} (27. Qd3 $18 {has better winning chances.} Be5 {[#]} 28. Bd1 $1 (28. Rxh6 Kg7 $18) 28... Bxd4 29. cxd4) 27... Ba4 $2 {[%emt 0:02:12][%mdl 8192]} 28. Rxa4 {[%emt 0:02:12] Weighted Error Value: White=0.10 (very precise) /Black=0.17 (very precise)} 1-0

[Event "1st Bella Italia International 2022"]
[Site "Lignano"]
[Date "2022.08.21"]
[Round "7.15"]
[White "Seres, Bela"]
[Black "Marson, Roy"]
[Result "1-0"]
[ECO "C50"]
[WhiteElo "2207"]
[BlackElo "1959"]
[Annotator "TA"]
[PlyCount "79"]
[EventDate "2022.08.18"]
[EventCountry "ITA"]
[SourceTitle "playchess.com"]
[Source "ChessBase"]
[SourceQuality "1"]
[TimeControl "5400+30"]

{[%evp 9,79,10,28,0,19,16,28,8,0,-20,-25,-22,-27,-18,175,173,169,166,340,308,307,238,254,236,216,178,167,86,162,184,196,152,247,202,246,223,283,116,114,133,129,123,257,255,259,254,256,254,277,277,257,256,342,339,331,332,467,467,467,444,467,460,466,441,652,644,1996,1916,12840,12839,2277,1382]} 1. e4 {[%emt 0:00:17]} e5 {[%emt 0:00:58]} 2. Nf3 {[%emt 0:00:25]} Nc6 {[%emt 0:00:16]} 3. Bc4 {[%emt 0:01:34]} Bc5 {[%emt 0:00:17]} 4. d3 {[%emt 0:01:18]} Nf6 {[%emt 0:00:42]} 5. Nc3 {[%emt 0:03:42]} d6 {[%emt 0:01:17]} 6. a4 {[%emt 0:02:04] C50: Hungarian Defence and Giuoco Pianissimo.} (6. Na4 $5 {[%cal Ra4c5]}) 6... Bg4 {[%emt 0:06:18]} 7. h3 {[%emt 0:02:17]} Bh5 {[%emt 0:03:44] [#]} 8. Be3 $146 {[%emt 0:08:09] White has an edge.} ({Predecessor:} 8. Nd5 Nxd5 9. Bxd5 O-O 10. g4 Bg6 11. h4 h5 12. Ng5 Qf6 13. Be3 Ne7 14. Bb3 hxg4 15. Qxg4 {1-0 (26) Van Bommel,T (2241)-Lenz,J (1364) LSS email 2015}) 8... Nd4 {[%emt 0:08:09]} 9. Bxd4 {[%emt 0:05:13]} (9. g4 $5 {[%cal Rg4h5]} Bg6 10. Nb5 $11) 9... Bxd4 {[%emt 0:00:45]} 10. g4 {[%emt 0:06:45]} Bxc3+ {[%emt 0:07:46]} 11. bxc3 {[%emt 0:03:14]} Nxg4 {[%emt 0:01:10]} 12. hxg4 $18 {[%emt 0:00:17]} Bxg4 {[%emt 0:00:05]} 13. d4 {[%emt 0:00:27]} f5 $2 {[%emt 0:15:23]} (13... Qf6 14. Be2 O-O) 14. Qd3 {[%emt 0:04:05]} Qf6 {[%emt 0:07:45]} 15. Nh2 {[%emt 0:04:19]} O-O-O {[%emt 0:03:33]} 16. Nxg4 {[%emt 0:06:19]} fxg4 {[%emt 0:00:16]} 17. O-O-O {[%emt 0:00:21]} h5 {[%emt 0:03:06]} 18. Qg3 {[%emt 0:00:46]} ({Better is} 18. dxe5 $18 Qxe5 19. Qe3) 18... Qg5+ {[%emt 0:02:56]} (18... g6 $16) 19. Kb2 {[%emt 0:03:32]} Rdf8 {[%emt 0:02:48]} 20. Rd3 {[%emt 0:01:26]} Rh6 {[%emt 0:03:37]} (20... Kb8 $16) 21. f3 {[%emt 0:01:39]} Rf4 {[%emt 0:02:02]} 22. fxg4 {[%emt 0:04:38]} Rxg4 {[%emt 0:03:54]} 23. Qe3 {[%emt 0:01:39]} (23. Qf3 $18 {is more deadly.}) 23... Qxe3 $16 {[%emt 0:02:39]} 24. Rxe3 {[%emt 0:00:01][%cal Oh1h5] aiming for Rxh5!} h4 {[%emt 0:02:11]} 25. Bf1 {[%emt 0:09:36] [#] Hoping for Bh3.} Rf4 {[%emt 0:08:45]} (25... Kd8 $16 {was worth a try.}) 26. Rg1 $18 {[%emt 0:02:56]} Rf7 {[%emt 0:04:04]} 27. dxe5 {[%emt 0:11:16]} dxe5 {[%emt 0:00:13]} 28. Rd3 {[%emt 0:00:02]} c6 {[%emt 0:03:51]} 29. Bh3+ {[%emt 0:02:00]} Kc7 {[%emt 0:00:05]} 30. Bf5 {[%emt 0:00:15]} Rd6 {[%emt 0:05:02]} 31. Rh3 {[%emt 0:00:19]} Rh6 {[%emt 0:00:28]} 32. Rg4 {[%emt 0:00:10]} Kb6 {[%emt 0:00:40]} (32... g6 {was called for.}) 33. Rhxh4 {[%emt 0:00:12] White is clearly winning.} Rxh4 {[%emt 0:00:10]} 34. Rxh4 {[%emt 0:00:03][%mdl 4096] Endgame KRB-KR} Kc5 {[%emt 0:00:51]} 35. Rg4 {[%emt 0:00:26]} Re7 {[%emt 0:00:56]} 36. Kb3 {[%emt 0:00:31]} b5 {[%emt 0:00:45]} (36... Rf7 $142 37. Rg6 Re7) 37. a5 {[%emt 0:01:15]} Kd6 {[%emt 0:00:54]} 38. Kb4 {[%emt 0:00:35] [#] Strongly threatening Rg6+.} a6 {[%emt 0:00:34]} 39. Rg6+ {[%emt 0:00:12]} Kc7 {[%emt 0:00:04]} 40. Kc5 {[%emt 0:00:07] Weighted Error Value: White=0.19 (very precise) /Black=0.52} 1-0